bitfinex/quotes_ETHUSD_20250130
["timestamp","ask_amount","ask_price","bid_price","bid_amount"]
[1738247557977,3.89945,3256.8,3256.1,3.07112]
[1738247558183,0.8289,3256.8,3256.3,3.0709]
[1738247558379,0.0111652,3256.9,3256.5,3.07076]
[1738247558921,0.0111652,3256.9,3256.7,3.07057]
[1738247559119,0.0111652,3256.9,3256.5,3.07074]
[1738247559454,0.0111652,3256.9,3256.4,3.0]
[1738247559618,0.0111652,3256.9,3256.4,3.07086]
[1738247560387,0.0111652,3256.9,3256.7,3.07058]
[1738247560619,0.0111652,3256.9,3256.8,3.07049]
[1738247562411,3.0816052,3256.9,3256.4,3.07086]
[1738247562584,0.0111652,3256.9,3256.4,3.07086]
[1738247562789,0.0111652,3256.9,3256.1,3.07111]
[1738247562790,3.07061,3256.7,3256.1,3.07111]
[1738247562990,3.07105,3256.3,3255.6,3.07162]
[1738247563200,0.7606,3256.2,3255.5,3.07168]
[1738247563407,3.07121,3256.1,3255.5,3.07168]
[1738247563696,3.07121,3256.1,3255.5,3.07166]
[1738247563902,0.7606,3256.2,3255.7,3.07152]
[1738247564310,0.7818,3256.4,3255.7,3.07152]
[1738247564513,3.85267,3256.4,3255.8,3.07143]
[1738247565357,0.7818,3256.4,3255.9,3.07128]
[1738247565503,0.0111652,3256.9,3256.2,3.07103]
[1738247565843,0.0111652,3256.9,3256.6,3.07068]
[1738247566235,0.0111652,3256.9,3256.7,3.07058]
[1738247567048,0.0111652,3256.9,3256.8,3.07049]
[1738247568355,0.0111652,3256.9,3256.8,3.84849]
[1738247568647,0.0111652,3256.9,3256.8,3.07049]
[1738247569150,0.0111652,3256.9,3256.8,3.684607]
[1738247569332,0.0111652,3256.9,3256.6,3.0706]
[1738247569538,0.8228652,3256.9,3256.4,3.07081]
[1738247569703,3.07055,3256.8,3256.2,3.07104]
[1738247569904,3.07067,3256.7,3256.0,3.07123]
[1738247570098,0.03074286,3256.7,3255.8,3.07141]
[1738247570367,3.88295,3256.0,3255.3,3.07185]
[1738247570506,3.88295,3256.0,3255.1,0.7579]
[1738247570711,3.07152,3255.8,3255.1,3.07204]
[1738247570911,6.95428,3256.0,3255.1,3.07204]
[1738247571107,3.07136,3255.9,3255.3,3.07189]
[1738247571311,0.8117,3256.0,3255.4,3.0718]
[1738247571554,0.8117,3256.0,3255.2,3.07196]
[1738247571761,3.07155,3255.7,3254.9,0.8222]
[1738247571923,3.07141,3255.9,3255.2,3.07199]
[1738247572311,3.07144,3255.8,3255.1,3.07203]
[1738247572510,3.07154,3255.7,3255.0,0.55]
[1738247572743,3.07164,3255.6,3254.9,0.8222]
[1738247572947,3.07164,3255.6,3254.9,3.8222]
[1738247573149,3.07164,3255.6,3254.9,6.89444]
[1738247573323,3.07154,3255.7,3255.0,3.07215]
[1738247573647,3.07146,3255.8,3254.9,3.8222]
[1738247573850,3.07164,3255.6,3254.9,6.89444]
[1738247574049,3.07164,3255.6,3254.8,3.07235]
[1738247574050,3.07187,3255.4,3254.8,3.0]
[1738247574350,3.0721,3255.1,3254.6,3.07253]
[1738247574810,3.07207,3255.2,3254.6,3.07253]
[1738247575347,3.07213,3255.1,3254.5,3.0]
[1738247575552,3.07213,3255.1,3254.5,6.07265]
[1738247575924,3.07235,3254.9,3254.2,3.87767]
[1738247576224,3.07227,3255.0,3254.2,3.07287]
[1738247576423,3.07229,3254.9,3254.3,3.07279]
[1738247576627,3.07226,3255.0,3254.4,3.07276]
[1738247577246,3.07229,3254.9,3254.3,6.07285]
[1738247577656,3.07229,3254.9,3254.4,3.07275]
[1738247577820,0.7934,3255.3,3254.6,3.07256]
[1738247578016,0.7934,3255.3,3254.9,3.07225]
[1738247578418,3.072,3255.2,3254.6,3.0]
[1738247578666,6.1441,3255.2,3254.6,6.07255]
[1738247578826,3.07212,3255.1,3254.5,3.07265]
[1738247579151,3.07202,3255.2,3254.6,3.0]
[1738247579357,3.86538,3255.3,3254.7,3.0724]
[1738247579557,3.07175,3255.5,3254.7,3.40606114]
[1738247579758,0.7661,3255.6,3255.0,3.07212]
[1738247579964,0.388316,3255.8,3255.2,3.07193]
[1738247580119,3.459816,3255.8,3255.2,3.07193]
[1738247580319,0.388316,3255.8,3255.0,3.07217]
[1738247580559,0.7727,3255.6,3254.3,0.8079]
[1738247580740,3.8962,3254.8,3254.3,3.07278]
[1738247580942,0.8238,3254.8,3254.4,3.07273]
[1738247581145,3.0722,3255.0,3254.5,3.07265]
[1738247581351,6.14448,3255.0,3254.3,3.07278]
[1738247581559,3.0722,3255.0,3254.3,3.07278]
[1738247582002,0.8238,3255.1,3254.3,0.64530331]
[1738247582159,0.8238,3255.1,3254.5,3.0726]
[1738247582831,3.89598,3255.1,3254.5,3.0726]
[1738247583220,3.89598,3255.1,3254.3,3.07282]
[1738247583421,3.07234,3254.9,3254.3,3.07282]
[1738247583658,3.07282,3254.4,3253.7,3.07336]
[1738247583967,3.07308,3254.1,3253.5,3.07357]
[1738247584268,3.10360286,3254.3,3253.5,3.07357]
[1738247584269,3.07303,3254.2,3253.5,3.07357]
[1738247584480,3.07315,3254.0,3253.3,3.89035]
[1738247584625,3.07373,3253.4,3252.6,6.55638127]
[1738247584825,3.07344,3253.7,3253.0,3.07406]
[1738247585027,3.90284,3253.9,3253.2,3.07384]
[1738247585369,0.8296,3253.9,3253.4,3.07363]
[1738247585573,0.8296,3253.9,3253.5,3.07358]
[1738247585789,0.8117,3254.3,3253.7,3.07342]
[1738247585961,3.88514,3254.6,3254.0,3.07304]
[1738247586158,0.8125,3254.6,3253.6,3.07348]
[1738247586387,3.0729,3254.3,3253.6,3.07348]
[1738247586588,3.0729,3254.3,3253.7,3.0734]
[1738247586744,0.8125,3254.6,3254.0,3.07313]
[1738247586950,0.8125,3254.6,3254.1,3.07295]
[1738247587146,0.8125,3254.6,3253.9,6.8905]
[1738247587147,0.8125,3254.6,3253.9,3.8905]
[1738247587385,0.8125,3254.6,3253.4,3.48193127]
[1738247587386,0.7686,3254.3,3253.4,3.07363]
[1738247587587,3.0732,3254.0,3253.4,3.07363]
[1738247587791,3.07317,3254.0,3253.4,3.462773]
[1738247588154,3.10391286,3254.0,3253.3,3.07376]
[1738247588384,3.07317,3254.0,3253.3,3.07376]
[1738247588718,3.07317,3254.0,3253.4,3.07368]
[1738247589197,3.07317,3254.0,3253.5,3.07358]
[1738247589526,0.7657,3255.2,3254.0,3.07313]
[1738247589789,0.7838,3254.5,3253.9,3.0732]
[1738247589948,3.85648,3254.5,3253.9,3.0732]
[1738247590152,3.85648,3254.5,3254.0,3.07313]
[1738247590366,0.7838,3254.5,3254.0,3.07313]
[1738247590671,3.85653,3254.5,3253.9,3.07316]
[1738247591294,0.7838,3254.5,3254.0,3.07314]
[1738247591509,0.7838,3254.5,3254.1,3.07304]
[1738247591807,3.07191,3255.3,3253.9,0.614656]
[1738247591808,0.8203,3255.2,3254.6,3.07254]
[1738247591952,0.8203,3255.8,3255.2,3.07193]
[1738247592151,4.23965313,3256.1,3255.3,3.07185]
[1738247592967,3.07141,3255.9,3255.3,3.07185]
[1738247593921,3.07163,3255.6,3254.9,3.07227]
[1738247594413,3.07146,3255.8,3255.0,3.07217]
[1738247594609,1.16849313,3256.1,3255.0,0.307217]
[1738247594816,0.8203,3256.1,3255.5,3.07169]
[1738247595013,3.89146,3256.1,3255.5,3.07169]
[1738247595217,3.07126,3256.0,3255.3,3.07186]
[1738247595527,3.07126,3256.0,3255.4,3.07178]
[1738247595698,0.8203,3256.1,3254.9,3.0]
[1738247595879,3.69774887,3256.3,3255.6,3.07156]
[1738247596077,0.8087,3256.5,3255.6,3.07156]
[1738247596078,3.07108,3256.2,3255.6,3.07156]
[1738247596296,3.07129,3256.0,3255.4,3.85319]
[1738247596614,3.07129,3256.0,3255.2,3.07198]
[1738247597279,3.07145,3255.8,3255.2,3.07198]
[1738247597492,3.07145,3255.8,3255.0,3.07219]
[1738247597493,4.494924,3255.8,3255.0,3.07219]
[1738247597698,3.07185,3255.4,3254.8,3.07234]
[1738247597898,3.07209,3255.2,3254.6,3.07255]
[1738247598092,3.07185,3255.4,3254.8,3.07238]
[1738247598293,3.48193127,3256.1,3254.3,3.48193127]
[1738247598294,3.48193127,3256.5,3254.9,0.03072218]
[1738247598621,3.48193127,3256.5,3254.4,0.55]
[1738247598622,3.07131,3256.0,3255.4,3.07179]
[1738247598925,3.07098,3256.3,3255.8,3.07143]
[1738247599111,3.07116,3256.1,3255.5,3.07171]
[1738247599533,3.07158,3255.7,3255.1,3.0]
[1738247599822,3.07164,3255.6,3255.0,3.07218]
[1738247600024,3.07164,3255.6,3254.8,3.07234]
[1738247600025,3.10247286,3255.5,3254.9,3.07228]
[1738247600229,3.07173,3255.5,3254.9,3.07228]
[1738247600730,3.07173,3255.5,3255.0,3.07218]
[1738247601232,3.07184,3255.4,3254.8,3.07234]
[1738247601382,0.384233,3255.5,3254.8,3.07234]
[1738247601588,3.0717,3255.6,3254.8,3.07234]
[1738247601924,0.8073,3256.1,3255.1,6.55397127]
[1738247602226,3.07135,3255.9,3255.3,3.07183]
[1738247602425,3.07135,3255.9,3255.3,3.07184]
[1738247603423,3.87847,3256.1,3255.3,3.07184]
[1738247603625,0.8073,3256.1,3255.4,3.07173]
[1738247603791,0.8073,3256.1,3255.5,3.07167]
[1738247603990,0.8073,3256.1,3255.4,3.07173]
[1738247604194,0.8073,3256.1,3255.6,3.07161]
[1738247604689,3.07099,3256.3,3255.6,3.07161]
[1738247605030,3.89695,3256.5,3255.8,3.0714]
[1738247605419,3.07091,3256.4,3255.8,3.0714]
[1738247605804,3.07098,3256.3,3255.8,3.0714]
[1738247606305,3.89696,3256.5,3255.8,3.0714]
[1738247606490,3.0709,3256.4,3255.8,3.0714]
[1738247606693,3.07104,3256.3,3255.7,3.86403]
[1738247606939,0.696804,3256.3,3255.6,3.0716]
[1738247607094,3.07108,3256.2,3255.6,3.0716]
[1738247607492,3.07132,3256.0,3255.3,3.0]
[1738247607696,3.0711,3256.2,3255.4,3.07175]
[1738247607896,3.07117,3256.1,3255.6,3.07157]
[1738247608119,1.1840904,3256.2,3255.6,3.07157]
[1738247608292,3.07117,3256.1,3255.6,3.07157]
[1738247608490,0.8073,3256.2,3255.6,3.07157]
[1738247609195,3.87842,3256.2,3255.6,3.07157]
[1738247609629,3.87842,3256.2,3255.4,3.07178]
[1738247609830,3.0712,3256.1,3255.4,3.07174]
[1738247610055,0.8073,3256.2,3255.7,3.07148]
[1738247611113,3.87838,3256.2,3255.6,3.07158]
[1738247611450,3.07133,3256.0,3255.4,3.0]
[1738247611806,3.07149,3255.8,3255.1,3.07207]
[1738247612153,3.07149,3255.8,3255.2,3.07199]
[1738247613107,3.07149,3255.8,3255.3,3.0719]
[1738247613771,0.8009,3255.6,3254.8,3.07234]
[1738247613920,3.10252286,3255.5,3254.9,3.07228]
[1738247614099,3.87259,3255.6,3255.0,3.07218]
[1738247614299,3.87259,3255.6,3255.1,3.0721]
[1738247614513,0.8009,3255.9,3255.4,3.07174]
[1738247614750,0.8009,3256.2,3255.8,3.07143]
[1738247614905,0.8009,3256.2,3255.9,3.07134]
[1738247615245,0.8009,3256.2,3255.2,6.072]
[1738247615246,3.07132,3256.0,3255.3,6.14367]
[1738247615453,3.07153,3255.8,3255.1,3.07203]
[1738247615656,0.03074286,3255.7,3254.9,3.07226]
[1738247615862,3.07198,3255.3,3254.7,3.07245]
[1738247616152,0.7916,3255.8,3254.7,3.07245]
[1738247616153,6.14354,3255.5,3254.8,6.07237]
[1738247616359,6.757894,3255.5,3254.8,6.07237]
[1738247616519,3.686104,3255.5,3254.8,3.0]
[1738247616847,0.79374286,3255.4,3254.7,0.3077]
[1738247617054,0.79374286,3255.4,3254.2,0.815]
[1738247617055,0.763,3255.4,3254.2,0.815]
[1738247617214,0.763,3255.4,3254.9,3.07225]
[1738247617414,0.763,3255.4,3255.2,3.072]
[1738247617616,1.37035713,3255.8,3255.2,3.072]
[1738247617805,3.07164,3255.6,3255.0,3.07218]
[1738247618006,0.03074286,3255.6,3254.6,3.07254]
[1738247618264,3.07185,3255.4,3254.7,3.07238]
[1738247618770,3.07185,3255.4,3254.8,3.07235]
[1738247618904,0.77,3255.5,3255.0,3.07219]
[1738247619109,0.77,3255.5,3255.1,3.07207]
[1738247619661,0.7954,3255.3,3254.4,3.07276]
[1738247619866,3.07258,3254.6,3254.0,0.3077]
[1738247620035,3.07278,3254.4,3253.6,3.07348]
[1738247620231,3.07278,3254.4,3253.5,0.55]
[1738247620438,3.07288,3254.3,3253.5,3.07361]
[1738247620746,3.07288,3254.3,3253.7,3.0734]
[1738247620926,3.10352286,3254.4,3253.5,0.386581]
[1738247621129,0.7804,3254.3,3253.4,3.07369]
[1738247621319,3.0731,3254.1,3253.4,3.07369]
[1738247621523,3.07317,3254.0,3253.4,3.07369]
[1738247622216,0.7804,3254.3,3253.5,0.03073313]
[1738247622564,0.7599,3254.7,3254.1,3.07296]
[1738247622864,3.83211,3255.0,3254.3,3.07276]
[1738247623031,3.83211,3255.0,3254.4,3.07267]
[1738247623214,3.83211,3255.0,3254.3,3.07276]
[1738247623632,3.83211,3255.0,3254.4,3.07272]
[1738247624335,3.07203,3255.2,3254.7,3.07246]
[1738247624610,3.85914,3255.4,3254.8,3.379616]
[1738247624737,3.07192,3255.3,3254.6,6.8903]
[1738247625051,3.07192,3255.3,3254.7,3.07247]
[1738247626555,3.07211,3255.1,3254.6,3.8178]
[1738247626761,3.07211,3255.1,3254.6,3.0]
[1738247627115,3.07192,3255.3,3254.6,6.07253]
[1738247627368,3.07201,3255.2,3254.6,6.07253]
[1738247627568,3.07192,3255.3,3254.7,3.07238]
[1738247627569,3.07191,3255.3,3254.7,3.07238]
[1738247627939,3.07191,3255.3,3254.6,3.679773]
[1738247628375,3.07211,3255.1,3254.6,0.607253]
[1738247628672,3.07211,3255.1,3254.5,6.07266]
[1738247628840,3.07191,3255.3,3254.6,3.0725]
[1738247629460,3.07191,3255.3,3254.7,3.07246]
[1738247629856,3.07191,3255.3,3254.5,3.07264]
[1738247630043,3.07191,3255.3,3254.6,3.07256]
[1738247630242,3.46090529,3255.3,3254.6,3.07256]
[1738247630758,3.07191,3255.3,3254.7,3.07247]
[1738247630955,0.7873,3255.4,3254.2,1.425796]
[1738247631154,0.7997,3255.9,3255.1,3.48193127]
[1738247631360,0.60432397,3256.5,3255.6,3.0]
[1738247631581,0.7997,3256.8,3256.1,3.07109]
[1738247631582,3.07052,3256.8,3256.1,3.07109]
[1738247631884,0.0111652,3256.9,3256.3,3.07094]
[1738247632042,0.0111652,3256.9,3256.5,3.07077]
[1738247632242,0.0111652,3256.9,3256.6,3.07062]
[1738247632444,0.0111652,3256.9,3256.5,3.82086]
[1738247632681,0.0111652,3256.9,3256.5,0.7501]
[1738247632863,0.0111652,3256.9,3256.3,3.07096]
[1738247632864,0.0111652,3256.9,3256.1,1.3247]
[1738247633064,0.0111652,3256.9,3256.4,3.07086]
[1738247633287,3.0815752,3256.9,3256.2,6.07099]
[1738247633585,0.79654286,3256.8,3255.6,3.87878]
[1738247633885,3.07103,3256.3,3255.6,3.07158]
[1738247634087,3.07127,3256.0,3255.4,3.07181]
[1738247634294,0.03074286,3255.9,3254.5,0.7709]
[1738247634596,0.7736,3255.4,3254.8,3.07237]
[1738247634825,0.7736,3255.4,3254.8,3.07235]
[1738247634978,3.07132,3256.0,3255.0,6.1443]
[1738247635176,3.07135,3255.9,3255.2,3.07195]
[1738247635377,0.7883,3256.3,3254.8,6.07233]
[1738247635580,3.07179,3255.5,3254.8,6.07233]
[1738247635807,3.07179,3255.5,3254.6,3.07256]
[1738247635808,3.07191,3255.3,3254.7,3.07246]
[1738247636388,0.7733,3255.7,3254.2,0.307296]
[1738247636618,3.07197,3255.3,3254.6,3.07255]
[1738247637019,3.07197,3255.3,3254.7,3.07247]
[1738247637879,3.07197,3255.3,3254.6,3.07255]
[1738247638424,3.07197,3255.3,3254.3,0.4081096]
[1738247638720,3.07197,3255.3,3254.7,3.07247]
[1738247638907,3.07172,3255.5,3254.8,3.07234]
[1738247639109,0.7733,3255.7,3255.1,3.07202]
[1738247639278,0.7733,3255.7,3255.3,3.0719]
[1738247639478,3.07141,3255.9,3255.1,3.0721]
[1738247639694,3.07154,3255.7,3254.9,6.55418127]
[1738247640021,3.0718,3255.5,3254.8,3.07238]
[1738247640398,3.8425,3255.3,3254.6,3.90064]
[1738247640716,3.8425,3255.3,3254.1,0.55]
[1738247640717,3.07237,3254.9,3254.3,3.07285]
[1738247640917,3.07237,3254.9,3254.2,0.7858]
[1738247641089,0.7705,3255.3,3254.2,3.81652644]
[1738247641290,3.84247,3255.3,3254.6,3.07255]
[1738247641619,3.84247,3255.3,3254.2,3.7858]
[1738247641620,0.384247,3255.2,3254.2,3.7858]
[1738247641824,3.0723,3254.9,3254.3,3.07284]
[1738247642550,3.0723,3254.9,3254.2,0.7858]
[1738247642751,0.62020937,3255.6,3253.7,6.14675]
[1738247642752,3.07273,3254.5,3253.7,6.14675]
[1738247642932,3.07282,3254.4,3253.7,3.07337]
[1738247643344,3.10366286,3254.3,3253.7,3.07339]
[1738247643556,3.07304,3254.1,3253.5,3.07361]
[1738247643865,3.07296,3254.2,3253.6,3.0735]
[1738247644008,0.61764829,3254.3,3253.4,0.7531]
[1738247644213,3.07297,3254.2,3253.6,3.0735]
[1738247644690,3.07279,3254.4,3253.6,3.0735]
[1738247644948,0.8085,3254.6,3253.3,3.48193127]
[1738247644949,3.07334,3253.8,3253.3,3.48193127]
[1738247645152,3.07308,3254.1,3253.3,3.07379]
[1738247645357,3.07325,3253.9,3253.3,3.07379]
[1738247645706,3.07308,3254.1,3253.4,3.07364]
[1738247645910,3.07316,3254.0,3253.4,3.07364]
[1738247646133,3.687674,3254.1,3253.3,3.07379]
[1738247646134,3.07324,3253.9,3253.3,3.07379]
[1738247646333,3.07324,3253.9,3253.1,3.07396]
[1738247646334,3.07348,3253.7,3253.1,3.07396]
[1738247646534,3.07361,3253.5,3252.9,3.07416]
[1738247646735,3.07348,3253.7,3252.8,3.07426]
[1738247646935,0.8113,3254.2,3253.6,3.0735]
[1738247647134,3.07306,3254.1,3253.4,3.07363]
[1738247647354,3.07306,3254.1,3253.2,3.0738]
[1738247647553,3.07315,3254.0,3253.0,3.07406]
[1738247647716,3.10389286,3254.0,3253.1,3.07391]
[1738247647922,0.31038929,3253.9,3253.3,3.07378]
[1738247648117,0.31038929,3253.9,3253.4,3.07368]
[1738247648475,0.31038929,3253.9,3253.3,3.07378]
[1738247648685,3.88426,3254.2,3253.5,3.07358]
[1738247648821,3.07305,3254.1,3253.5,3.07358]
[1738247649018,0.8113,3254.2,3253.4,0.55]
[1738247649212,0.8113,3254.2,3253.7,3.07335]
[1738247649562,3.88431,3254.2,3253.5,3.07359]
[1738247649807,3.10384286,3254.1,3253.5,3.07359]
[1738247649918,0.03074286,3254.1,3253.5,3.07359]
[1738247650823,3.10382286,3254.1,3253.5,3.07359]
[1738247651122,0.03074286,3254.1,3253.5,3.07359]
[1738247651468,0.42224815,3254.1,3253.2,0.8308]
[1738247651763,3.07348,3253.7,3253.1,3.07397]
[1738247652172,3.07353,3253.6,3253.1,3.07397]
[1738247652378,3.07353,3253.6,3252.6,3.07437]
[1738247652379,0.8286,3253.4,3252.6,3.07437]
[1738247652521,3.07418,3252.9,3252.2,3.07483]
[1738247652848,3.07408,3253.1,3252.5,3.07454]
[1738247653062,3.07391,3253.2,3252.6,3.07444]
[1738247653222,0.697632,3253.2,3252.2,0.55]
[1738247653417,0.03074286,3253.3,3252.1,3.78963127]
[1738247653640,0.03074286,3253.3,3252.2,3.0]
[1738247653838,0.8286,3253.4,3252.2,3.0]
[1738247654649,0.8257,3253.2,3251.7,3.48193127]
[1738247654838,0.8257,3253.2,3252.2,0.55]
[1738247655034,0.8257,3253.2,3252.5,0.55]
[1738247655239,0.8257,3254.0,3252.5,3.55]
[1738247655441,0.8257,3253.8,3252.5,3.0]
[1738247655679,0.8257,3253.6,3252.5,3.0]
[1738247655981,0.03074286,3253.5,3252.1,3.55]
[1738247656278,0.8257,3253.4,3252.2,0.78101313]
[1738247656482,0.8257,3253.4,3252.1,0.55]
[1738247656670,0.8257,3253.2,3252.1,3.55]
[1738247656868,0.8257,3253.0,3251.7,0.7782]
[1738247657043,0.03074286,3252.9,3251.7,0.7782]
[1738247657239,0.8257,3253.0,3251.7,0.7782]
[1738247657452,0.8257,3253.0,3251.7,4.23498313]
[1738247657652,0.8257,3253.0,3252.1,0.55]
[1738247657887,0.8257,3253.0,3252.1,3.55]
[1738247658999,0.8257,3253.0,3252.1,3.58074308]
[1738247659302,0.8237,3254.1,3252.5,3.55]
[1738247659601,0.224,3254.3,3252.5,3.0]
[1738247659602,0.7767,3253.7,3252.5,3.0]
[1738247659902,0.7767,3253.7,3252.5,3.72886313]
[1738247659903,0.03074286,3253.6,3252.5,3.72886313]
[1738247660189,0.7767,3253.7,3252.6,0.55]
[1738247660750,0.80744286,3253.7,3252.5,3.72886313]
[1738247661900,0.7913,3253.5,3252.0,3.48193127]
[1738247662209,0.7913,3253.2,3251.9,3.0]
[1738247662380,0.82204286,3253.1,3251.9,3.0]
[1738247662687,0.82204286,3253.1,3251.7,0.45678313]
[1738247663250,0.60649134,3252.8,3251.7,0.45678313]
[1738247663604,0.8079,3252.6,3251.7,0.45678313]
[1738247663951,0.8079,3252.6,3251.7,3.45678313]
[1738247665855,0.8079,3252.6,3251.3,0.3077]
[1738247666186,0.8079,3252.6,3251.2,3.48193127]
[1738247666381,0.8079,3252.6,3251.5,0.55]
[1738247666704,0.8079,3252.6,3251.5,0.8577]
[1738247667105,0.03074286,3252.5,3251.5,0.8577]
[1738247667600,0.8079,3252.6,3251.8,0.55]
[1738247667767,0.03074286,3252.5,3251.7,3.48193127]
[1738247667968,0.8079,3252.6,3251.7,3.48193127]
[1738247668169,0.8079,3252.6,3251.8,0.55]
[1738247668704,0.03074286,3252.5,3251.8,0.55]
[1738247669329,0.8079,3252.6,3251.8,0.55]
[1738247669934,0.03074286,3252.5,3251.8,0.55]
[1738247670131,0.03074286,3252.5,3251.7,3.48193127]
[1738247670542,0.03074286,3252.5,3251.6,3.3077]
[1738247670543,0.03074286,3252.5,3251.6,0.3077]
[1738247670686,0.751,3252.4,3251.6,0.3077]
[1738247671735,0.03074286,3252.3,3251.4,0.3077]
[1738247671899,0.73174286,3252.4,3251.4,0.3077]
[1738247673843,0.73174286,3252.4,3251.3,3.48193127]
[1738247674486,0.62012259,3252.1,3251.0,0.3077]
[1738247674789,0.8099,3252.0,3251.0,0.3077]
[1738247674999,0.8099,3252.0,3250.9,3.48193127]
[1738247675251,0.8099,3252.0,3250.1,3.48193127]
[1738247675252,0.0075,3251.6,3250.1,3.48193127]
[1738247675402,0.8099,3251.5,3250.1,3.48193127]
[1738247675928,0.7965,3251.3,3249.7,3.48193127]
[1738247676142,0.7965,3251.3,3249.8,0.55]
[1738247676301,0.7965,3251.3,3249.7,3.48193127]
[1738247676502,0.826,3251.0,3249.7,3.48193127]
[1738247676706,0.826,3251.0,3249.8,0.42587313]
[1738247676922,0.826,3251.0,3249.8,3.42587313]
[1738247677736,0.826,3251.0,3250.2,3.0]
[1738247678787,0.826,3251.0,3249.8,0.42587313]
[1738247678985,0.0075,3250.9,3249.3,3.48193127]
[1738247679235,0.7629,3250.8,3249.3,3.48193127]
[1738247680038,0.7629,3250.8,3249.4,0.55]
[1738247680405,0.7629,3250.8,3249.4,3.55]
[1738247680742,0.0075,3250.9,3249.4,3.55]
[1738247680743,0.8235,3250.4,3249.4,3.55]
[1738247680907,0.8235,3250.4,3249.6,0.55]
[1738247681318,0.8235,3250.4,3249.5,0.70319313]
[1738247681503,0.8235,3250.4,3249.4,3.0]
[1738247682343,0.8235,3250.4,3249.3,3.48193127]
[1738247682546,0.8235,3250.4,3248.9,4.25603127]
[1738247683743,0.8235,3250.4,3249.0,3.0]
[1738247684376,0.015,3250.3,3249.0,3.0]
[1738247684551,0.7855,3250.8,3249.0,3.0]
[1738247684752,0.7855,3250.6,3249.0,3.64819313]
[1738247685277,0.015,3250.5,3249.0,0.64819313]
[1738247685437,0.61651703,3250.0,3249.0,0.64819313]
[1738247685636,0.7693,3249.9,3249.0,0.64819313]
[1738247686367,0.7693,3249.9,3249.0,0.55]
[1738247687426,0.7693,3249.9,3248.9,3.48193127]
[1738247688394,0.015,3249.8,3248.1,4.31463127]
[1738247688539,0.015,3249.6,3248.1,4.31463127]
[1738247688741,0.793,3249.5,3248.2,0.43146313]
[1738247689333,0.793,3249.5,3247.5,2.88453987]
[1738247689334,3.0,3249.2,3247.5,2.88453987]
[1738247689586,0.793,3248.9,3247.5,2.88453987]
[1738247690065,0.61417637,3248.3,3247.1,0.005]
[1738247690281,0.793,3248.0,3247.1,0.005]
[1738247690783,0.8218,3247.8,3247.1,0.005]
[1738247690937,0.8068,3247.8,3247.1,0.005]
[1738247691143,0.8068,3247.8,3247.3,3.07938]
[1738247691545,0.8068,3247.8,3247.5,3.07922]
[1738247692389,0.8068,3247.8,3247.7,4.0791]
[1738247692689,0.7625,3248.2,3247.7,4.4989096]
[1738247692849,3.84113,3248.2,3247.7,1.0]
[1738247693255,0.7625,3248.2,3247.7,1.0]
[1738247693692,3.079,3247.8,3247.7,1.0]
[1738247693895,6.8511,3247.8,3247.7,1.0]
[1738247694669,6.8586,3247.8,3247.7,1.0]
[1738247694964,8.160238,3247.8,3247.7,1.0]
[1738247695180,8.78307905,3247.8,3247.7,1.0]
[1738247695380,9.00707905,3247.8,3247.7,1.0]
[1738247697481,8.78307905,3247.8,3247.7,1.0]
[1738247697684,4.48144105,3247.8,3247.7,1.0]
[1738247697885,3.8511,3247.8,3247.7,1.0]
[1738247698081,0.7721,3247.8,3247.7,1.0]
[1738247698282,3.07875,3248.1,3247.7,1.0]
[1738247699231,3.89984,3248.2,3247.7,1.0]
[1738247699382,0.8212,3248.2,3247.7,1.0]
[1738247699825,3.0788,3248.1,3247.7,1.0]
[1738247699988,3.07891,3247.9,3247.7,1.0]
[1738247700332,3.46875,3248.1,3247.7,1.0]
[1738247700683,3.8999,3248.2,3247.7,1.0]
[1738247701084,0.8212,3248.2,3247.7,1.0]
[1738247701326,0.8333,3249.0,3248.5,3.07834]
[1738247701732,0.8333,3249.0,3248.6,3.07821]
[1738247702028,0.8333,3249.0,3248.6,3.07824]
[1738247702233,4.74974455,3249.4,3248.8,3.07805]
[1738247702404,5.51844455,3249.4,3248.8,3.07805]
[1738247702605,3.0776,3249.3,3248.6,3.693906]
[1738247702840,3.07758,3249.3,3248.8,3.07803]
[1738247703132,5.51849455,3249.4,3248.6,3.693886]
[1738247703285,5.51849455,3249.4,3248.4,3.0]
[1738247703286,3.07771,3249.2,3248.4,6.0784]
[1738247703485,8.59599455,3249.4,3248.5,3.07828]
[1738247703684,3.07759,3249.3,3248.7,3.07814]
[1738247703885,3.07759,3249.3,3248.5,3.07828]
[1738247704136,2.44093455,3249.4,3248.0,0.7895]
[1738247704137,3.07787,3249.0,3248.0,0.7895]
[1738247704288,3.07799,3248.9,3248.3,3.07845]
[1738247704491,3.07787,3249.0,3248.3,3.07845]
[1738247704685,3.07769,3249.2,3248.3,3.07845]
[1738247704942,3.07769,3249.2,3248.6,3.07821]
[1738247705129,5.51845455,3249.4,3248.7,3.07814]
[1738247705437,3.07777,3249.2,3248.5,3.07825]
[1738247705734,5.51845455,3249.4,3249.0,3.07783]
[1738247705735,1.67223455,3249.4,3249.0,3.07783]
[1738247705898,1.67223455,3249.4,3249.1,3.07775]
[1738247706099,1.67223455,3249.4,3248.8,0.55]
[1738247706333,0.8319,3249.7,3248.8,3.62802]
[1738247706551,0.8319,3249.7,3249.1,3.07776]
[1738247706750,0.8319,3249.7,3249.2,0.307776]
[1738247707154,0.7913,3250.0,3249.4,3.07748]
[1738247707327,0.7913,3250.0,3249.2,0.307776]